fUST/lending_fUST_20250605
["ID","MTS","AMOUNT","RATE_DAILY","PERIOD"]
[364483089,1749114640259,-440.0,0.00018904,2]
[364483091,1749114640270,-502.59,0.00018904,2]
[364483093,1749114640279,-440.0,0.00018904,2]
[364483095,1749114640289,-440.0,0.00018904,2]
[364483097,1749114640299,-374.87008456,0.00018904,2]
[364483099,1749114640308,-440.0,0.00018904,2]
[364483101,1749114640318,-440.0,0.00018904,2]
[364483103,1749114640327,-506.88,0.00018904,2]
[364483105,1749114640337,-440.0,0.00018904,2]
[364483107,1749114640347,-758.17,0.00018904,2]
[364483109,1749114640356,-711.34,0.00018904,2]
[364483111,1749114640366,-440.0,0.00018904,2]
[364483113,1749114640376,-440.0,0.00018904,2]
[364483115,1749114640386,-440.0,0.00018904,2]
[364483117,1749114640396,-440.0,0.00018904,2]
[364483119,1749114640405,-440.0,0.00018904,2]
[364483121,1749114640415,-440.0,0.00018904,2]
[364483124,1749114640425,-440.0,0.00018904,2]
[364483125,1749114640435,-440.0,0.00018929,2]
[364483128,1749114640444,-440.0,0.00018929,2]
[364483129,1749114640454,-440.0,0.00018929,2]
[364483132,1749114640463,-440.0,0.00018929,2]
[364483134,1749114640473,-921.01,0.00018929,2]
[364483135,1749114640483,-500.0,0.00019037,2]
[364483138,1749114640493,-1267.79193517,0.00019107,2]
[364483140,1749114640503,-440.0,0.00019175,2]
[364483142,1749114640515,-1000.0,0.00019177,2]
[364483144,1749114640525,-1000.0,0.00019177,2]
[364483146,1749114640535,-1000.0,0.00019177,2]
[364483148,1749114640544,-1000.0,0.00019177,2]
[364483150,1749114640555,-1000.0,0.00019177,2]
[364483152,1749114640565,-1000.0,0.00019177,2]
[364483154,1749114640575,-1000.0,0.00019177,2]
[364483156,1749114640584,-1000.0,0.00019177,2]
[364483158,1749114640594,-1000.0,0.00019177,2]
[364483160,1749114640604,-1000.0,0.00019177,2]
[364483162,1749114640614,-1000.0,0.00019177,2]
[364483164,1749114640623,-1000.0,0.00019177,2]
[364483166,1749114640633,-1000.0,0.00019177,2]
[364483168,1749114640643,-1000.0,0.00019177,2]
[364483170,1749114640653,-1000.0,0.00019177,2]
[364483172,1749114640663,-1000.0,0.00019177,2]
[364483174,1749114640673,-1000.0,0.00019177,2]
[364483176,1749114640682,-693.22604602,0.00019177,2]
[364483178,1749114640691,-440.0,0.00019178,2]
[364483180,1749114640701,-440.0,0.00019178,2]
[364483182,1749114640710,-440.0,0.00019178,2]
[364483184,1749114640720,-440.0,0.00019178,2]
[364483186,1749114640730,-440.0,0.00019178,2]
[364483188,1749114640739,-440.0,0.00019178,2]
[364483190,1749114640748,-506.88,0.00019178,2]
[364483192,1749114640759,-440.0,0.00019178,2]
[364483195,1749114640769,-758.17,0.00019178,2]
[364483196,1749114640781,-711.34,0.00019178,2]
[364483199,1749114640791,-440.0,0.00019178,2]
[364483201,1749114640800,-440.0,0.00019178,2]
[364483203,1749114640810,-440.0,0.00019178,2]
[364483205,1749114640820,-188.335457,0.00019178,2]
[364483207,1749114640830,-440.0,0.00019203,2]
[364483209,1749114640839,-440.0,0.00019203,2]
[364483211,1749114640849,-440.0,0.00019203,2]
[364483213,1749114640860,-440.0,0.00019203,2]
[364483215,1749114640870,-921.01,0.00019203,2]
[364483217,1749114640879,-161.0182729,0.00019288,2]
[364483219,1749114640888,-25559.03518315,0.00019329,2]
[364483221,1749114640898,-1267.79193517,0.00019348,2]
[364483223,1749114640907,-1751.72449566,0.00019352,2]
[364483225,1749114640916,-183.0,0.000194,2]
[364483227,1749114640926,-183.0,0.000194,2]
[364483229,1749114640935,-373.7273582,0.00019425,2]
[364483231,1749114640944,-364.646625,0.00019425,2]
[364483233,1749114640954,-3148.79,0.00019446,2]
[364483235,1749114640964,-440.0,0.00019449,2]
[364483253,1749114641122,-440.0,0.00019452,2]
[364483255,1749114641134,-440.0,0.00019452,2]
[364483257,1749114641144,-440.0,0.00019452,2]
[364483259,1749114641154,-440.0,0.00019452,2]
[364483262,1749114641164,-224.94,0.00019452,2]
[364483264,1749114641173,-440.0,0.00019452,2]
[364483266,1749114641185,-506.88,0.00019452,2]
[364483268,1749114641195,-151.0,0.00019452,2]
[364483270,1749114641205,-440.0,0.00019452,2]
[364483271,1749114641215,-758.17,0.00019452,2]
[364483274,1749114641225,-711.34,0.00019452,2]
[364483276,1749114641235,-440.0,0.00019452,2]
[364483278,1749114641244,-440.0,0.00019452,2]
[364483280,1749114641254,-518.51,0.00019477,2]
[364483282,1749114641267,-440.0,0.00019477,2]
[364483284,1749114641277,-440.0,0.00019477,2]
[364483286,1749114641289,-440.0,0.00019477,2]
[364483289,1749114641299,-921.01,0.00019477,2]
[364483291,1749114641309,-1267.79193517,0.0001959,2]
[364483293,1749114641318,-151.0,0.0001959,2]
[364483295,1749114641328,-440.0,0.00019723,2]
[364483297,1749114641337,-440.0,0.00019726,2]
[364483299,1749114641347,-440.0,0.00019726,2]
[364483301,1749114641357,-440.0,0.00019726,2]
[364483303,1749114641366,-440.0,0.00019726,2]
[364483305,1749114641375,-440.0,0.00019726,2]
[364483307,1749114641385,-506.88,0.00019726,2]
[364483309,1749114641394,-440.0,0.00019726,2]
[364483311,1749114641404,-758.17,0.00019726,2]
[364483313,1749114641414,-711.34,0.00019726,2]
[364483315,1749114641424,-440.0,0.00019726,2]
[364483317,1749114641433,-440.0,0.00019726,2]
[364483319,1749114641443,-440.0,0.00019751,2]
[364483321,1749114641453,-440.0,0.00019751,2]
[364483323,1749114641463,-921.01,0.00019751,2]
[364483325,1749114641472,-1751.72449562,0.00019817,2]
[364483327,1749114641482,-1267.79193517,0.00019831,2]
[364483329,1749114641492,-343.089,0.00019852,2]
[364483331,1749114641502,-177.92407056,0.00019852,2]
[364483333,1749114641513,-207.4,0.0001987,2]
[364483335,1749114641522,-500.0,0.0001987,2]
[364483337,1749114641531,-500.0,0.0001987,2]
[364483339,1749114641541,-500.0,0.0001987,2]
[364483341,1749114641551,-500.0,0.0001987,2]
[364483343,1749114641560,-500.0,0.0001987,2]
[364483345,1749114641570,-536.64384642,0.0001987,2]
[364483347,1749114641579,-500.0,0.0001987,2]
[364483349,1749114641589,-500.0,0.0001987,2]
[364483351,1749114641598,-500.0,0.0001987,2]
[364483353,1749114641608,-500.0,0.0001987,2]
[364483355,1749114641617,-500.0,0.0001987,2]
[364483357,1749114641627,-500.0,0.0001987,2]
[364483359,1749114641637,-500.0,0.0001987,2]
[364483361,1749114641648,-500.0,0.0001987,2]
[364483364,1749114641658,-500.0,0.0001987,2]
[364483366,1749114641669,-500.0,0.0001987,2]
[364483368,1749114641679,-500.0,0.0001987,2]
[364483370,1749114641689,-500.0,0.0001987,2]
[364483372,1749114641699,-500.0,0.0001987,2]
[364483374,1749114641710,-500.0,0.0001987,2]
[364483376,1749114641720,-500.0,0.0001987,2]
[364483377,1749114641729,-500.0,0.0001987,2]
[364483378,1749114641739,-500.0,0.0001987,2]
[364483379,1749114641749,-500.0,0.0001987,2]
[364483380,1749114641761,-500.0,0.0001987,2]
[364483381,1749114641770,-500.0,0.0001987,2]
[364483382,1749114641780,-500.0,0.0001987,2]
[364483383,1749114641789,-500.0,0.0001987,2]
[364483384,1749114641799,-500.0,0.0001987,2]
[364483385,1749114641808,-500.0,0.0001987,2]
[364483386,1749114641817,-500.0,0.0001987,2]
[364483387,1749114641829,-500.0,0.0001987,2]
[364483388,1749114641838,-590.26752982,0.0001987,2]
[364483389,1749114641848,-151.0,0.000199,2]
[364483390,1749114641858,-151.0,0.000199,2]
[364483391,1749114641867,-151.0,0.000199,2]
[364483392,1749114641877,-151.0,0.000199,2]
[364483393,1749114641887,-500.0,0.00019973,2]
[364483394,1749114641896,-440.0,0.00019997,2]
[364483395,1749114641905,-214121.64558907,0.0002,2]
[364483396,1749114641915,-440.0,0.0002,2]
[364483397,1749114641925,-440.0,0.0002,2]
[364483398,1749114641935,-151.0,0.0002,2]
[364483399,1749114641944,-151.0,0.0002,2]
[364483400,1749114641953,-151.0,0.0002,2]
[364483401,1749114641963,-276.423045,0.0002,2]
[364483402,1749114641974,-151.0,0.0002,2]
[364483403,1749114641983,-151.0,0.0002,2]
[364483404,1749114641994,-151.0,0.0002,2]
[364483405,1749114642004,-151.0,0.0002,2]
[364483406,1749114642014,-151.0,0.0002,2]
[364483407,1749114642024,-151.0,0.0002,2]
[364483408,1749114642035,-222.727671,0.0002,2]
[364483409,1749114642045,-222.727671,0.0002,2]
[364483410,1749114642054,-372.837006,0.0002,2]
[364483411,1749114642064,-372.837006,0.0002,2]
[364483412,1749114642074,-151.0,0.0002,2]
[364483413,1749114642084,-151.0,0.0002,2]
[364483414,1749114642094,-184.0,0.0002,3]
[364483415,1749114642104,-151.0,0.0002,2]
[364483416,1749114642115,-151.0,0.0002,2]
[364483417,1749114642124,-151.0,0.0002,2]
[364483418,1749114642134,-151.0,0.0002,2]
[364483419,1749114642143,-151.0,0.0002,2]
[364483420,1749114642152,-440.0,0.0002,2]
[364483421,1749114642161,-151.0,0.0002,2]
[364483422,1749114642171,-151.0,0.0002,2]
[364483423,1749114642182,-218.593782,0.0002,2]
[364483424,1749114642194,-151.0,0.0002,2]
[364483425,1749114642204,-154.98673,0.0002,2]
[364483426,1749114642213,-151.0,0.0002,2]
[364483427,1749114642222,-151.0,0.0002,2]
[364483428,1749114642232,-151.0,0.0002,2]
[364483429,1749114642242,-151.0,0.0002,2]
[364483430,1749114642251,-151.0,0.0002,2]
[364483431,1749114642261,-440.0,0.0002,2]
[364483432,1749114642271,-440.0,0.0002,2]
[364483433,1749114642281,-506.88,0.0002,2]
[364483434,1749114642291,-151.0,0.0002,2]
[364483435,1749114642300,-440.0,0.0002,2]
[364483436,1749114642310,-758.17,0.0002,2]
[364483437,1749114642319,-292.488006,0.0002,2]
[364483438,1749114642329,-711.34,0.0002,2]
[364483439,1749114642339,-619.692095,0.0002,2]
[364483440,1749114642348,-619.692095,0.0002,2]
[364483443,1749114642358,-440.0,0.0002,2]
[364483445,1749114642367,-440.0,0.0002,2]
[364483447,1749114642376,-151.0,0.0002,2]
[364483449,1749114642385,-532.22,0.00020025,2]
[364483451,1749114642395,-440.0,0.00020025,2]
[364483453,1749114642404,-921.01,0.00020025,2]
[364483454,1749114642414,-1100.0,0.00020068,2]
[364483455,1749114642423,-1267.79193517,0.00020072,2]
[364483456,1749114642432,-151.0,0.00020171,2]
[364483457,1749114642442,-151.0,0.00020171,2]
[364483458,1749114642451,-151.0,0.00020171,2]
[364483459,1749114642460,-430.88014,0.00020171,2]
[364483460,1749114642470,-222.727671,0.00020171,2]
[364483461,1749114642479,-222.727671,0.00020171,2]
[364483463,1749114642489,-1000.0,0.00020184,5]
[364483464,1749114642499,-227.640214,0.00020187,2]
[364483465,1749114642508,-495.415,0.00020231,2]
[364483466,1749114642518,-440.0,0.00020271,2]
[364483467,1749114642528,-500.0,0.00020272,2]
[364483468,1749114642537,-500.0,0.00020272,2]
[364483469,1749114642548,-500.0,0.00020272,2]
[364483470,1749114642559,-500.0,0.00020272,2]
[364483471,1749114642569,-500.0,0.00020272,2]
[364483472,1749114642579,-500.0,0.00020272,2]
[364483473,1749114642588,-500.0,0.00020272,2]
[364483474,1749114642598,-500.0,0.00020272,2]
[364483475,1749114642608,-500.0,0.00020272,2]
[364483476,1749114642617,-500.0,0.00020272,2]
[364483477,1749114642626,-500.0,0.00020272,2]
[364483478,1749114642636,-500.0,0.00020272,2]
[364483479,1749114642645,-500.0,0.00020272,2]
[364483480,1749114642654,-500.0,0.00020272,2]
[364483481,1749114642664,-500.0,0.00020272,2]
[364483482,1749114642673,-500.0,0.00020272,2]
[364483483,1749114642683,-500.0,0.00020272,2]
[364483484,1749114642693,-500.0,0.00020272,2]
[364483485,1749114642703,-500.0,0.00020272,2]
[364483486,1749114642712,-500.0,0.00020272,2]
[364483487,1749114642722,-311.66593141,0.00020272,2]
[364483488,1749114642732,-549.23410574,0.00020272,2]
[364483489,1749114642742,-500.0,0.00020272,2]
[364483490,1749114642752,-500.0,0.00020272,2]
[364483491,1749114642763,-500.0,0.00020272,2]
[364483492,1749114642773,-500.0,0.00020272,2]
[364483493,1749114642783,-440.0,0.00020273,2]
[364483494,1749114642793,-440.0,0.00020273,2]
[364483495,1749114642802,-440.0,0.00020273,2]
[364483497,1749114642812,-440.0,0.00020273,2]
[364483498,1749114642822,-440.0,0.00020273,2]
[364483500,1749114642831,-506.88,0.00020273,2]
[364483502,1749114642841,-440.0,0.00020273,2]
[364483504,1749114642850,-758.17,0.00020273,2]
[364483506,1749114642861,-711.34,0.00020273,2]
[364483508,1749114642871,-440.0,0.00020273,2]
[364483510,1749114642880,-440.0,0.00020273,2]
[364483512,1749114642890,-1751.72449562,0.00020281,2]
[364483514,1749114642899,-440.0,0.00020299,2]
[364483516,1749114642909,-921.01,0.00020299,2]
[364483518,1749114642919,-1267.79193517,0.00020314,3]
[364483520,1749114642929,-364.646625,0.00020384,2]
[364483522,1749114642939,-440.0,0.00020545,2]
[364483524,1749114642949,-279.0,0.00020547,2]
[364483526,1749114642958,-440.0,0.00020547,2]
[364483528,1749114642968,-440.0,0.00020547,2]
[364483530,1749114642977,-440.0,0.00020547,2]
[364483532,1749114642987,-440.0,0.00020547,2]
[364483534,1749114642997,-506.88,0.00020547,2]
[364483536,1749114643007,-440.0,0.00020547,2]
[364483538,1749114643017,-758.17,0.00020547,2]
[364483540,1749114643027,-711.34,0.00020547,2]
[364483543,1749114643037,-440.0,0.00020547,2]
[364483544,1749114643047,-440.0,0.00020547,2]
[364483547,1749114643057,-1267.79193517,0.00020555,3]
[364483548,1749114643067,-440.0,0.00020573,2]
[364483551,1749114643077,-921.01,0.00020573,2]
[364483553,1749114643087,-160.0,0.00020586,3]
[364483555,1749114643096,-151.0,0.000206,4]
[364483557,1749114643106,-1751.72449562,0.00020746,2]
[364483559,1749114643115,-1267.79193517,0.00020797,4]
[364483561,1749114643124,-151.0,0.000208,4]
[364483564,1749114643133,-505.83,0.00020819,2]
[364483567,1749114643142,-440.0,0.00020821,2]
[364483569,1749114643151,-440.0,0.00020821,2]
[364483572,1749114643160,-440.0,0.00020821,2]
[364483575,1749114643170,-440.0,0.00020821,2]
[364483578,1749114643179,-506.88,0.00020821,2]
[364483580,1749114643193,-440.0,0.00020821,2]
[364483582,1749114643202,-758.17,0.00020821,2]
[364483584,1749114643211,-711.34,0.00020821,2]
[364483586,1749114643220,-440.0,0.00020821,2]
[364483588,1749114643230,-440.0,0.00020821,2]
[364483590,1749114643239,-440.0,0.00020847,2]
[364483592,1749114643247,-921.01,0.00020847,2]
[364483594,1749114643256,-1810.0,0.0002086,2]
[364483596,1749114643267,-321.31102092,0.00020886,2]
[364483598,1749114643276,-151.0,0.00020889,2]
[364483600,1749114643286,-151.0,0.00020889,2]
[364483602,1749114643295,-151.0,0.00020889,2]
[364483604,1749114643304,-151.0,0.00020889,2]
[364483606,1749114643313,-151.0,0.00020889,2]
[364483608,1749114643322,-151.0,0.00020889,2]
[364483610,1749114643332,-200.563582,0.00020889,2]
[364483612,1749114643341,-200.563582,0.00020889,2]
[364483614,1749114643351,-3000.0,0.000209,2]
[364483616,1749114643360,-167.67824614,0.000209,2]
[364483618,1749114643369,-151.0,0.000209,2]
[364483620,1749114643379,-151.0,0.000209,2]
[364483631,1749114643482,-151.0,0.000209,2]
[364483633,1749114643491,-151.0,0.000209,2]
[364483635,1749114643501,-151.0,0.000209,2]
[364483637,1749114643510,-3000.0,0.00020908,2]
[364483639,1749114643520,-151.0,0.00020909,2]
[364483641,1749114643530,-151.0,0.00020909,2]
[364483643,1749114643540,-151.0,0.00020909,2]
[364483645,1749114643549,-151.0,0.00020909,2]
[364483647,1749114643558,-151.0,0.00020909,2]
[364483649,1749114643567,-619.692095,0.00020909,2]
[364483651,1749114643577,-619.692095,0.00020909,2]
[364483653,1749114643586,-151.0,0.00020909,2]
[364483655,1749114643596,-3000.0,0.0002091,2]
[364483657,1749114643605,-3000.0,0.0002092,2]
[364483659,1749114643614,-150.125,0.0002092,2]
[364483661,1749114643623,-150.497,0.0002092,2]
[364483662,1749114643633,-962.0,0.0002092,2]
[364483664,1749114643642,-2225.0,0.0002092,2]
[364483666,1749114643651,-709.0,0.0002092,2]
[364483668,1749114643663,-3000.0,0.0002093,2]
[364483670,1749114643672,-240.42192,0.00020939,2]
[364483672,1749114643682,-3000.0,0.0002094,2]
[364483674,1749114643692,-151.0,0.0002094,2]
[364483676,1749114643702,-265.012673,0.0002094,2]
[364483678,1749114643711,-151.0,0.0002094,2]
[364483680,1749114643721,-151.0,0.0002094,2]
[364483682,1749114643731,-164.688244,0.0002094,2]
[364483684,1749114643741,-151.0,0.0002094,2]
[364483686,1749114643751,-151.0,0.0002094,2]
[364483688,1749114643761,-372.837006,0.0002094,2]
[364483690,1749114643771,-372.837006,0.0002094,2]
[364483692,1749114643781,-151.0,0.0002094,2]
[364483694,1749114643791,-151.0,0.0002094,2]
[364483696,1749114643800,-151.0,0.0002094,2]
[364483698,1749114643811,-151.0,0.0002094,2]
[364483700,1749114643821,-5000.0,0.00020946,2]
[364483702,1749114643830,-500.0,0.00020947,2]
[364483704,1749114643840,-500.0,0.00020947,2]
[364483706,1749114643849,-500.0,0.00020947,2]
[364483708,1749114643859,-152.61770127,0.00020947,2]
[364483710,1749114643868,-500.0,0.00020947,2]
[364483712,1749114643877,-500.0,0.00020947,2]
[364483714,1749114643887,-501.27815109,0.00020947,2]
[364483716,1749114643896,-500.0,0.00020947,2]
[364483718,1749114643905,-500.0,0.00020947,2]
[364483720,1749114643915,-5904.130147,0.0002095,2]
[364483722,1749114643925,-151.0,0.0002095,2]
[364483724,1749114643934,-151.0,0.0002095,2]
[364483725,1749114643944,-151.0,0.0002095,2]
[364483727,1749114643953,-430.88014,0.0002095,2]
[364483729,1749114643963,-222.727671,0.0002095,2]
[364483731,1749114643973,-222.727671,0.0002095,2]
[364483733,1749114643982,-500.0,0.00020973,2]
[364483735,1749114643991,-500.0,0.00020973,2]
[364483737,1749114644000,-501.14564429,0.00020973,2]
[364483739,1749114644010,-500.0,0.00020973,2]
[364483741,1749114644019,-500.0,0.00020973,2]
[364483743,1749114644030,-500.0,0.00020973,2]
[364483745,1749114644039,-500.0,0.00020973,2]
[364483747,1749114644048,-501.09580603,0.00020973,2]
[364483749,1749114644058,-500.0,0.00020973,2]
[364483751,1749114644067,-500.0,0.00020973,2]
[364483753,1749114644076,-500.0,0.00020973,2]
[364483755,1749114644085,-500.0,0.00020973,2]
[364483757,1749114644095,-519.70268838,0.00020973,2]
[364483759,1749114644104,-143603.27352161,0.00020986,2]
[364483761,1749114644113,-151.0,0.00020986,2]
[364483763,1749114644122,-232.601867,0.00020986,2]
[364483764,1749114644131,-151.0,0.00020986,2]
[364483766,1749114644141,-151.0,0.00020986,2]
[364483768,1749114644149,-151.0,0.00020986,2]
[364483770,1749114644158,-249.002,0.00020986,2]
[364483772,1749114644167,-151.0,0.00020986,2]
[364483774,1749114644177,-151.0,0.00020986,2]
[364483776,1749114644187,-151.0,0.00020986,2]
[364483778,1749114644196,-210.293302,0.00020986,2]
[364483780,1749114644205,-210.293302,0.00020986,2]
[364483782,1749114644215,-151.0,0.00020986,2]
[364483784,1749114644224,-151.0,0.00020986,2]
[364483785,1749114644233,-151.0,0.00020986,2]
[364483787,1749114644243,-292.234983,0.00020986,2]
[364483789,1749114644253,-208.884066,0.00020986,2]
[364483791,1749114644264,-296.781168,0.00020986,2]
[364483793,1749114644274,-430.88014,0.00020986,2]
[364483795,1749114644283,-200.563582,0.00020986,2]
[364483797,1749114644292,-200.563582,0.00020986,2]
[364483799,1749114644302,-151.0,0.00020986,2]
[364483801,1749114644311,-182.977676,0.00020986,2]
[364483802,1749114644320,-226.061836,0.00020986,2]
[364483804,1749114644329,-222.727671,0.00020986,2]
[364483806,1749114644340,-222.727671,0.00020986,2]
[364483808,1749114644349,-372.837006,0.00020986,2]
[364483810,1749114644359,-372.837006,0.00020986,2]
[364483812,1749114644369,-151.0,0.00020986,2]
[364483814,1749114644378,-151.0,0.00020986,2]
[364483816,1749114644387,-151.0,0.00020986,2]
[364483818,1749114644398,-151.0,0.00020986,2]
[364483820,1749114644407,-151.0,0.00020986,2]
[364483822,1749114644417,-230.165281,0.00020986,2]
[364483824,1749114644426,-151.0,0.00020986,2]
[364483826,1749114644435,-151.0,0.00020986,2]
[364483828,1749114644445,-151.0,0.00020986,2]
[364483830,1749114644454,-151.0,0.00020986,2]
[364483832,1749114644463,-151.0,0.00020986,2]
[364483834,1749114644472,-166.20991,0.00020986,2]
[364483836,1749114644481,-151.0,0.00020986,2]
[364483838,1749114644490,-264.368459,0.00020986,2]
[364483840,1749114644499,-619.692095,0.00020986,2]
[364483841,1749114644508,-619.692095,0.00020986,2]
[364483844,1749114644522,-265.500993,0.00020986,2]
[364483846,1749114644535,-6000.0,0.00020989,2]
[364483849,1749114644549,-11254.56423951,0.00021,7]
[364483865,1749114644718,-440.0,0.00019452,2]
[364483867,1749114644731,-2319.23893936,0.00021,7]
[364483887,1749114644921,-500.0,0.00018655,2]
[364483890,1749114644936,-500.0,0.00018902,2]
[364483892,1749114644948,-500.0,0.00018902,2]
[364483894,1749114644959,-500.0,0.00018902,2]
[364483896,1749114644971,-73.16201026,0.00018902,2]
[364483898,1749114644986,-285.46798974,0.00018902,2]
[364483900,1749114644998,-440.0,0.00019726,2]
[364483903,1749114645010,-440.0,0.0002,2]
[364483905,1749114645023,-440.0,0.00020273,2]
[364483907,1749114645035,-440.0,0.00020547,2]
[364483909,1749114645048,-440.0,0.00020821,2]
[364483911,1749114645059,-11499.24438056,0.00021,7]
[364483914,1749114645074,-254.00260516,0.00021,7]
[364483916,1749114645088,-701.46346679,0.00021,7]
[364483919,1749114645102,-603.519,0.00021,7]
[364483926,1749114645166,-872.23335984,0.00018468,2]
[364483929,1749114645181,-423.89412164,0.00018468,2]
[364483931,1749114645198,-3703.87251852,0.00018468,2]
[364483933,1749114645211,-192691.08384213,0.00021,7]
[364483935,1749114645222,-243.897276,0.00021,2]
[364483938,1749114645235,-2793.49,0.00021,2]
[364483940,1749114645245,-151.0,0.00021,2]
[364483942,1749114645256,-151.0,0.00021,2]
[364483944,1749114645269,-151.0,0.00021,2]
[364483946,1749114645280,-151.0,0.00021,2]
[364483948,1749114645291,-151.0,0.00021,2]
[364483950,1749114645302,-151.0,0.00021,2]
[364483952,1749114645314,-151.0,0.00021,2]
[364483955,1749114645325,-151.0,0.00021,2]
[364483958,1749114645337,-151.0,0.00021,2]
[364483960,1749114645347,-151.0,0.00021,2]
[364483962,1749114645356,-151.0,0.00021,2]
[364483964,1749114645365,-151.0,0.00021,2]
[364483965,1749114645375,-151.0,0.00021,2]
[364483967,1749114645384,-210.293302,0.00021,2]
[364483969,1749114645393,-210.293302,0.00021,2]
[364483971,1749114645402,-151.0,0.00021,2]
[364483973,1749114645411,-151.0,0.00021,2]
[364483975,1749114645421,-151.0,0.00021,2]
[364483977,1749114645430,-430.88014,0.00021,2]
[364483978,1749114645439,-200.563582,0.00021,2]
[364483979,1749114645448,-200.563582,0.00021,2]
[364483980,1749114645457,-151.0,0.00021,2]
[364483981,1749114645466,-183.0,0.00021,4]
[364483982,1749114645475,-183.0,0.00021,4]
[364483983,1749114645484,-176.47210494,0.00021,2]
[364483984,1749114645495,-46.25556606,0.00021,2]
[364483985,1749114645505,-222.727671,0.00021,2]
[364483986,1749114645516,-372.837006,0.00021,2]
[364483987,1749114645526,-49.32975694,0.00021,2]
[364483988,1749114645537,-323.50724906,0.00021,2]
[364483989,1749114645551,-151.0,0.00021,2]
[364483990,1749114645561,-151.0,0.00021,2]
[364483991,1749114645570,-151.0,0.00021,2]
[364483992,1749114645579,-151.0,0.00021,2]
[364483993,1749114645588,-151.0,0.00021,2]
[364483999,1749114645757,-151.0,0.00021,2]
[364484002,1749114645771,-151.0,0.00021,2]
[364484004,1749114645780,-151.0,0.00021,2]
[364484006,1749114645790,-151.0,0.00021,2]
[364484008,1749114645799,-151.0,0.00021,2]
[364484010,1749114645809,-212.94059491,0.00021,7]
[364484012,1749114645818,-619.692095,0.00021,2]
[364484014,1749114645828,-619.692095,0.00021,2]
[364484016,1749114645839,-3100.21246525,0.00021,7]
[364484033,1749114646001,-9574.90334652,0.00021,7]
[364484035,1749114646014,-842.5625,0.00021,7]
[364484037,1749114646023,-1267.79193517,0.00021038,4]
[364484039,1749114646034,-987.38623748,0.00021067,2]
[364484041,1749114646046,-324.65567513,0.00021067,2]
[364484043,1749114646057,-331.266836,0.00021067,2]
[364484050,1749114646108,-3079.87125139,0.00021067,2]
[364484052,1749114646118,-440.0,0.00021095,2]
[364484054,1749114646127,-187.9,0.00021095,2]
[364484056,1749114646137,-440.0,0.00021095,2]
[364484058,1749114646146,-506.88,0.00021095,2]
[364484060,1749114646156,-440.0,0.00021095,2]
[364484062,1749114646165,-423.27623522,0.00021095,2]
[364484644,1749114903332,2990.0,0.0002421,120]
[364484645,1749114903366,2544.51775844,0.0002421,120]
[364484651,1749115117541,550.1039,0.00025,120]